[Event "Titled Tuesday Blitz June 28 Early 2022"]
[White "Piesik, Piotr"]
[Black "Mogirzan, Matei-Valeriu"]
[WhiteFideId "1136194"]
[BlackFideId "1257455"]
[WhiteElo "2247"]
[BlackElo "1733"]
[Result "1-0"]
[Round "04"]
[TimeControl "180+1"]
[Date "2022.06.28"]
[WhiteClock "0:00:18"]
[BlackClock "0:00:05"]

1. Nf3 {[%clk 0:02:40]}  Nf6 {[%clk 0:02:56]} 2. g3 {[%clk 0:02:40]}  Nc6 {[%clk 0:02:56]} 3. Bg2 {[%clk 0:02:40]}  d5 {[%clk 0:02:56]} 4. O-O {[%clk 0:02:40]}  e6 {[%clk 0:02:56]} 5. d3 {[%clk 0:02:40]}  Be7 {[%clk 0:02:56]} 6. Nbd2 {[%clk 0:02:41]}  O-O {[%clk 0:02:56]} 7. e4 {[%clk 0:02:41]}  b6 {[%clk 0:02:55]} 8. Qe2 {[%clk 0:02:41]}  Bb7 {[%clk 0:02:55]} 9. e5 {[%clk 0:02:41]}  Nd7 {[%clk 0:02:51]} 10. Re1 {[%clk 0:02:40]}  a5 {[%clk 0:02:43]} 11. Nf1 {[%clk 0:02:39]}  b5 {[%clk 0:02:27]} 12. h4 {[%clk 0:02:38]}  b4 {[%clk 0:02:19]} 13. h5 {[%clk 0:02:37]}  a4 {[%clk 0:02:15]} 14. h6 {[%clk 0:02:37]}  g6 {[%clk 0:02:14]} 15. a3 {[%clk 0:02:30]}  b3 {[%clk 0:02:08]} 16. c3 {[%clk 0:02:30]}  Ba6 {[%clk 0:02:06]} 17. N1h2 {[%clk 0:02:29]}  Nc5 {[%clk 0:02:01]} 18. Rd1 {[%clk 0:02:29]}  Qb8 {[%clk 0:01:40]} 19. Bg5 {[%clk 0:02:24]}  Qb5 {[%clk 0:01:30]} 20. Bxe7 {[%clk 0:02:18]}  Nxe7 {[%clk 0:01:31]} 21. Nd4 {[%clk 0:02:17]}  Qb6 {[%clk 0:01:18]} 22. Qf3 {[%clk 0:02:13]}  Nd7 {[%clk 0:01:08]} 23. Ng4 {[%clk 0:02:12]}  Nf5 {[%clk 0:01:00]} 24. Nxf5 {[%clk 0:01:57]}  gxf5 {[%clk 0:00:58]} 25. Qf4 {[%clk 0:01:49]}  Kh8 {[%clk 0:00:54]} 26. Ne3 {[%clk 0:01:31]}  Rg8 {[%clk 0:00:44]} 27. g4 {[%clk 0:01:32]}  Nc5 {[%clk 0:00:22]} 28. Bf1 {[%clk 0:01:21]}  Rg6 {[%clk 0:00:16]} 29. Kh2 {[%clk 0:01:18]}  Rag8 {[%clk 0:00:08]} 30. gxf5 {[%clk 0:01:15]}  exf5 {[%clk 0:00:09]} 31. Nxf5 {[%clk 0:01:11]}  Ne6 {[%clk 0:00:06]} 32. Qe3 {[%clk 0:01:04]}  d4 {[%clk 0:00:04]} 33. cxd4 {[%clk 0:01:02]}  Bb7 {[%clk 0:00:03]} 34. d5 {[%clk 0:00:50]}  Qxe3 {[%clk 0:00:02]} 35. fxe3 {[%clk 0:00:47]}  Bxd5 {[%clk 0:00:02]} 36. e4 {[%clk 0:00:47]}  Ng5 {[%clk 0:00:01]} 37. Bg2 {[%clk 0:00:44]}  Bb7 {[%clk 0:00:01]} 38. Rac1 {[%clk 0:00:41]}  Bc8 {[%clk 0:00:01]} 39. Rf1 {[%clk 0:00:33]}  Bxf5 {[%clk 0:00:02]} 40. Rxf5 {[%clk 0:00:34]}  Rxh6+ {[%clk 0:00:02]} 41. Kg1 {[%clk 0:00:34]}  Rhg6 {[%clk 0:00:02]} 42. Kf2 {[%clk 0:00:32]}  Ne6 {[%clk 0:00:02]} 43. Bf3 {[%clk 0:00:26]}  Rg3 {[%clk 0:00:02]} 44. Rh1 {[%clk 0:00:20]}  Ng5 {[%clk 0:00:02]} 45. Be2 {[%clk 0:00:17]}  Nxe4+ {[%clk 0:00:01]} 46. dxe4 {[%clk 0:00:17]}  Rg2+ {[%clk 0:00:02]} 47. Ke3 {[%clk 0:00:17]}  c5 {[%clk 0:00:02]} 48. Rxf7 {[%clk 0:00:17]}  R8g3+ {[%clk 0:00:02]} 49. Rf3 {[%clk 0:00:17]}  Rxf3+ {[%clk 0:00:02]} 50. Kxf3 {[%clk 0:00:18]}  Rg8 {[%clk 0:00:02]} 51. Rc1 {[%clk 0:00:17]}  Rf8+ {[%clk 0:00:02]} 52. Ke3 {[%clk 0:00:17]}  Rc8 {[%clk 0:00:02]} 53. Rc4 {[%clk 0:00:17]}  h5 {[%clk 0:00:02]} 54. Rxa4 {[%clk 0:00:17]}  h4 {[%clk 0:00:02]} 55. Bg4 {[%clk 0:00:16]}  c4 {[%clk 0:00:02]} 56. Bxc8 {[%clk 0:00:15]}  c3 {[%clk 0:00:02]} 57. bxc3 {[%clk 0:00:15]}  b2 {[%clk 0:00:03]} 58. Rb4 {[%clk 0:00:16]}  h3 {[%clk 0:00:03]} 59. Rxb2 {[%clk 0:00:16]}  h2 {[%clk 0:00:03]} 60. Rxh2+ {[%clk 0:00:17]}  Kg7 {[%clk 0:00:04]} 61. Rf2 {[%clk 0:00:17]}  Kg6 {[%clk 0:00:04]} 62. e6 {[%clk 0:00:17]}  Kg5 {[%clk 0:00:05]} 63. e7 {[%clk 0:00:18]} 1-0


[Site "https://www.chess.com"]

[Event "Titled Tuesday Blitz June 28 Early 2022"]
[White "Pourkashiyan, Atousa"]
[Black "Hambleton, Aman"]
[WhiteFideId "12502014"]
[BlackFideId "2606577"]
[WhiteElo "2247"]
[BlackElo "2552"]
[Result "0-1"]
[Round "04"]
[TimeControl "180+1"]
[Date "2022.06.28"]
[WhiteClock "0:01:46"]
[BlackClock "0:02:35"]

1. e4 {[%clk 0:02:06]}  b6 {[%clk 0:02:59]} 2. d4 {[%clk 0:02:05]}  Bb7 {[%clk 0:02:59]} 3. Nc3 {[%clk 0:02:04]}  e6 {[%clk 0:03:00]} 4. Nf3 {[%clk 0:02:03]}  Bb4 {[%clk 0:02:59]} 5. Bd3 {[%clk 0:02:03]}  Nf6 {[%clk 0:02:58]} 6. Qe2 {[%clk 0:02:03]}  d5 {[%clk 0:02:58]} 7. e5 {[%clk 0:02:03]}  Ne4 {[%clk 0:02:58]} 8. Bd2 {[%clk 0:02:03]}  Bxc3 {[%clk 0:02:59]} 9. Bxc3 {[%clk 0:02:01]}  c5 {[%clk 0:02:59]} 10. O-O {[%clk 0:01:59]}  Nxc3 {[%clk 0:02:59]} 11. bxc3 {[%clk 0:01:58]}  c4 {[%clk 0:03:00]} 12. Bxc4 {[%clk 0:01:57]}  dxc4 {[%clk 0:03:00]} 13. Qxc4 {[%clk 0:01:58]}  Ba6 {[%clk 0:02:35]} 14. Qa4+ {[%clk 0:01:46]}  Qd7 {[%clk 0:02:35]} 0-1


[Site "https://www.chess.com"]

[Event "Titled Tuesday Blitz June 28 Early 2022"]
[White "Rom, Jasper"]
[Black "Gardezi, Arsal"]
[WhiteFideId "2023733"]
[BlackFideId "30949521"]
[WhiteElo "2233"]
[BlackElo "1781"]
[Result "1-0"]
[Round "04"]
[TimeControl "180+1"]
[Date "2022.06.28"]
[WhiteClock "0:00:12"]
[BlackClock "0:00:25"]

1. e4 {[%clk 0:03:00]}  e5 {[%clk 0:02:57]} 2. Nf3 {[%clk 0:03:00]}  Nc6 {[%clk 0:02:57]} 3. Bb5 {[%clk 0:02:59]}  a6 {[%clk 0:02:57]} 4. Bxc6 {[%clk 0:02:59]}  dxc6 {[%clk 0:02:57]} 5. O-O {[%clk 0:03:00]}  Bd6 {[%clk 0:02:57]} 6. d4 {[%clk 0:02:59]}  f6 {[%clk 0:02:56]} 7. dxe5 {[%clk 0:02:58]}  fxe5 {[%clk 0:02:56]} 8. Nxe5 {[%clk 0:02:58]}  Bxe5 {[%clk 0:02:56]} 9. Qh5+ {[%clk 0:02:57]}  Kf8 {[%clk 0:02:56]} 10. Qxe5 {[%clk 0:02:57]}  Nf6 {[%clk 0:02:57]} 11. Nc3 {[%clk 0:02:54]}  Kf7 {[%clk 0:02:49]} 12. Bg5 {[%clk 0:02:27]}  Qe8 {[%clk 0:02:08]} 13. Bxf6 {[%clk 0:02:22]}  gxf6 {[%clk 0:02:08]} 14. Qxc7+ {[%clk 0:02:22]}  Bd7 {[%clk 0:02:08]} 15. Rad1 {[%clk 0:02:19]}  Rd8 {[%clk 0:02:06]} 16. Qxb7 {[%clk 0:02:14]}  Rg8 {[%clk 0:02:04]} 17. Rd3 {[%clk 0:02:01]}  Qe7 {[%clk 0:02:03]} 18. Rfd1 {[%clk 0:01:53]}  Rxg2+ {[%clk 0:01:41]} 19. Kf1 {[%clk 0:00:50]}  Rxf2+ {[%clk 0:01:12]} 20. Kxf2 {[%clk 0:00:40]}  Qc5+ {[%clk 0:01:12]} 21. Kf1 {[%clk 0:00:21]}  Qc4 {[%clk 0:00:59]} 22. b3 {[%clk 0:00:14]}  Qe6 {[%clk 0:00:28]} 23. Rxd7+ {[%clk 0:00:13]}  Ke8 {[%clk 0:00:25]} 24. Rxd8# {[%clk 0:00:12]} 1-0


[Site "https://www.chess.com"]

[Event "Titled Tuesday Blitz June 28 Early 2022"]
[White "Rosen, Eric"]
[Black "Thorhallsson, Simon"]
[WhiteFideId "2032562"]
[BlackFideId "2310090"]
[WhiteElo "2362"]
[BlackElo "2137"]
[Result "1-0"]
[Round "04"]
[TimeControl "180+1"]
[Date "2022.06.28"]
[WhiteClock "0:01:17"]
[BlackClock "0:00:21"]

1. d4 {[%clk 0:03:00]}  Nf6 {[%clk 0:02:54]} 2. Bf4 {[%clk 0:03:01]}  e6 {[%clk 0:02:53]} 3. e3 {[%clk 0:03:00]}  d5 {[%clk 0:02:49]} 4. Nf3 {[%clk 0:03:01]}  Be7 {[%clk 0:02:48]} 5. Nbd2 {[%clk 0:03:01]}  O-O {[%clk 0:02:48]} 6. Ne5 {[%clk 0:03:01]}  c5 {[%clk 0:02:40]} 7. c3 {[%clk 0:03:01]}  Nc6 {[%clk 0:02:40]} 8. Bd3 {[%clk 0:02:57]}  Nd7 {[%clk 0:02:17]} 9. Nxc6 {[%clk 0:02:45]}  bxc6 {[%clk 0:02:16]} 10. O-O {[%clk 0:02:37]}  a5 {[%clk 0:02:15]} 11. Qe2 {[%clk 0:02:36]}  f5 {[%clk 0:02:07]} 12. Nf3 {[%clk 0:02:32]}  Qb6 {[%clk 0:02:07]} 13. b3 {[%clk 0:02:29]}  a4 {[%clk 0:01:45]} 14. Qc2 {[%clk 0:02:11]}  Ba6 {[%clk 0:01:20]} 15. c4 {[%clk 0:02:11]}  Bf6 {[%clk 0:00:48]} 16. Rfd1 {[%clk 0:01:48]}  cxd4 {[%clk 0:00:35]} 17. exd4 {[%clk 0:01:46]}  axb3 {[%clk 0:00:34]} 18. axb3 {[%clk 0:01:44]}  c5 {[%clk 0:00:28]} 19. cxd5 {[%clk 0:01:29]}  cxd4 {[%clk 0:00:28]} 20. Rxa6 {[%clk 0:01:17]}  Rxa6 {[%clk 0:00:29]} 21. dxe6 {[%clk 0:01:18]}  Qxe6 {[%clk 0:00:21]} 22. Bc4 {[%clk 0:01:17]} 1-0


[Site "https://www.chess.com"]

[Event "Titled Tuesday Blitz June 28 Early 2022"]
[White "Rychagov, Andrey"]
[Black "Espinosa Veloz, Ermes"]
[WhiteFideId "4119932"]
[BlackFideId "3507424"]
[WhiteElo "2460"]
[BlackElo "2333"]
[Result "1-0"]
[Round "04"]
[TimeControl "180+1"]
[Date "2022.06.28"]
[WhiteClock "0:00:25"]
[BlackClock "0:00:05"]

1. d4 {[%clk 0:03:00]}  d5 {[%clk 0:02:59]} 2. c4 {[%clk 0:03:00]}  c6 {[%clk 0:02:59]} 3. Nf3 {[%clk 0:03:00]}  Nf6 {[%clk 0:02:58]} 4. Nc3 {[%clk 0:03:00]}  dxc4 {[%clk 0:02:58]} 5. a4 {[%clk 0:02:59]}  Bf5 {[%clk 0:02:57]} 6. Ne5 {[%clk 0:02:59]}  Nbd7 {[%clk 0:02:57]} 7. Nxc4 {[%clk 0:02:59]}  Qc7 {[%clk 0:02:57]} 8. Bg5 {[%clk 0:02:58]}  e6 {[%clk 0:02:41]} 9. f3 {[%clk 0:02:57]}  Bb4 {[%clk 0:02:29]} 10. e4 {[%clk 0:02:55]}  Bg6 {[%clk 0:02:29]} 11. Be2 {[%clk 0:02:55]}  O-O {[%clk 0:02:27]} 12. O-O {[%clk 0:02:55]}  h6 {[%clk 0:02:25]} 13. Be3 {[%clk 0:02:51]}  Rad8 {[%clk 0:02:21]} 14. Qb3 {[%clk 0:02:48]}  a5 {[%clk 0:02:19]} 15. Na2 {[%clk 0:02:39]}  Be7 {[%clk 0:02:17]} 16. Qc3 {[%clk 0:02:39]}  b6 {[%clk 0:02:14]} 17. Rfd1 {[%clk 0:02:34]}  c5 {[%clk 0:01:53]} 18. Na3 {[%clk 0:02:29]}  Qb8 {[%clk 0:01:49]} 19. Nb5 {[%clk 0:02:25]}  cxd4 {[%clk 0:01:47]} 20. Nxd4 {[%clk 0:02:25]}  Ne5 {[%clk 0:01:27]} 21. Qb3 {[%clk 0:02:11]}  Rc8 {[%clk 0:01:16]} 22. Nc3 {[%clk 0:02:10]}  Bc5 {[%clk 0:01:10]} 23. Ba6 {[%clk 0:02:09]}  Neg4 {[%clk 0:01:02]} 24. fxg4 {[%clk 0:01:47]}  Nxg4 {[%clk 0:01:03]} 25. g3 {[%clk 0:01:47]}  Nxe3 {[%clk 0:01:01]} 26. Bxc8 {[%clk 0:01:43]}  Nxd1 {[%clk 0:01:00]} 27. Rxd1 {[%clk 0:01:36]}  e5 {[%clk 0:00:58]} 28. Bf5 {[%clk 0:01:28]}  Bxd4+ {[%clk 0:00:55]} 29. Kg2 {[%clk 0:01:26]}  Bxf5 {[%clk 0:00:54]} 30. exf5 {[%clk 0:01:25]}  Qb7+ {[%clk 0:00:47]} 31. Qd5 {[%clk 0:01:25]}  Qxd5+ {[%clk 0:00:42]} 32. Nxd5 {[%clk 0:01:24]}  Bxb2 {[%clk 0:00:43]} 33. Nxb6 {[%clk 0:01:23]}  Rb8 {[%clk 0:00:39]} 34. Rd6 {[%clk 0:01:20]}  Bd4 {[%clk 0:00:37]} 35. Nc4 {[%clk 0:01:18]}  Rb4 {[%clk 0:00:35]} 36. Nxa5 {[%clk 0:01:14]}  Rxa4 {[%clk 0:00:35]} 37. Nc6 {[%clk 0:01:14]}  Ra2+ {[%clk 0:00:34]} 38. Kf3 {[%clk 0:01:14]}  Bc3 {[%clk 0:00:28]} 39. Rd8+ {[%clk 0:01:04]}  Kh7 {[%clk 0:00:28]} 40. Rd7 {[%clk 0:01:05]}  Kg8 {[%clk 0:00:24]} 41. Ne7+ {[%clk 0:01:01]}  Kh7 {[%clk 0:00:19]} 42. Nd5 {[%clk 0:01:01]}  Rd2 {[%clk 0:00:09]} 43. h4 {[%clk 0:00:48]}  h5 {[%clk 0:00:08]} 44. f6 {[%clk 0:00:47]}  gxf6 {[%clk 0:00:07]} 45. Rxf7+ {[%clk 0:00:39]}  Kg8 {[%clk 0:00:07]} 46. Rd7 {[%clk 0:00:39]}  Kf8 {[%clk 0:00:06]} 47. Nxf6 {[%clk 0:00:34]}  Rxd7 {[%clk 0:00:07]} 48. Nxd7+ {[%clk 0:00:34]}  Ke7 {[%clk 0:00:07]} 49. Nc5 {[%clk 0:00:34]}  Be1 {[%clk 0:00:06]} 50. Ne4 {[%clk 0:00:31]}  Ke6 {[%clk 0:00:06]} 51. Ke2 {[%clk 0:00:31]}  Kf5 {[%clk 0:00:05]} 52. Kf3 {[%clk 0:00:25]}  Bd2 {[%clk 0:00:05]} 53. Nxd2 {[%clk 0:00:25]} 1-0


[Site "https://www.chess.com"]

[Event "Titled Tuesday Blitz June 28 Early 2022"]
[White "Sadhwani, Raunak"]
[Black "Beerdsen, Thomas"]
[WhiteFideId "35093487"]
[BlackFideId "1030108"]
[WhiteElo "2616"]
[BlackElo "2585"]
[Result "1-0"]
[Round "04"]
[TimeControl "180+1"]
[Date "2022.06.28"]
[WhiteClock "0:00:23"]
[BlackClock "0:00:04"]

1. e4 {[%clk 0:02:57]}  c5 {[%clk 0:02:33]} 2. Nf3 {[%clk 0:02:58]}  Nc6 {[%clk 0:02:33]} 3. Nc3 {[%clk 0:02:56]}  Nf6 {[%clk 0:02:33]} 4. Bb5 {[%clk 0:02:55]}  Qc7 {[%clk 0:02:30]} 5. O-O {[%clk 0:02:48]}  e6 {[%clk 0:02:27]} 6. Re1 {[%clk 0:02:46]}  Nd4 {[%clk 0:02:19]} 7. e5 {[%clk 0:02:47]}  Nxb5 {[%clk 0:02:05]} 8. Nxb5 {[%clk 0:02:45]}  Qc6 {[%clk 0:02:06]} 9. c4 {[%clk 0:02:40]}  Nd5 {[%clk 0:01:56]} 10. cxd5 {[%clk 0:02:31]}  Qxb5 {[%clk 0:01:56]} 11. d6 {[%clk 0:02:32]}  b6 {[%clk 0:01:51]} 12. d4 {[%clk 0:02:32]}  Bb7 {[%clk 0:01:49]} 13. Be3 {[%clk 0:02:24]}  cxd4 {[%clk 0:01:48]} 14. Bxd4 {[%clk 0:02:25]}  g6 {[%clk 0:01:30]} 15. Bc3 {[%clk 0:02:04]}  Bh6 {[%clk 0:01:20]} 16. Qd4 {[%clk 0:01:45]}  Bxf3 {[%clk 0:01:15]} 17. gxf3 {[%clk 0:01:46]}  O-O {[%clk 0:01:14]} 18. Qh4 {[%clk 0:01:43]}  Bg7 {[%clk 0:01:12]} 19. f4 {[%clk 0:01:42]}  Rfc8 {[%clk 0:01:02]} 20. Re3 {[%clk 0:01:41]}  Rc4 {[%clk 0:00:58]} 21. Rae1 {[%clk 0:01:35]}  h5 {[%clk 0:00:51]} 22. Qg5 {[%clk 0:01:27]}  Rac8 {[%clk 0:00:31]} 23. h3 {[%clk 0:01:25]}  a5 {[%clk 0:00:29]} 24. a3 {[%clk 0:01:24]}  Qa4 {[%clk 0:00:29]} 25. Rf3 {[%clk 0:01:05]}  b5 {[%clk 0:00:29]} 26. f5 {[%clk 0:00:58]}  b4 {[%clk 0:00:19]} 27. fxg6 {[%clk 0:00:54]}  fxg6 {[%clk 0:00:17]} 28. Qxg6 {[%clk 0:00:46]}  bxc3 {[%clk 0:00:08]} 29. Rg3 {[%clk 0:00:46]}  Rg4 {[%clk 0:00:08]} 30. hxg4 {[%clk 0:00:46]}  h4 {[%clk 0:00:08]} 31. Rxc3 {[%clk 0:00:39]}  Rxc3 {[%clk 0:00:08]} 32. bxc3 {[%clk 0:00:40]}  Qxa3 {[%clk 0:00:08]} 33. Re3 {[%clk 0:00:33]}  Qc1+ {[%clk 0:00:03]} 34. Kg2 {[%clk 0:00:33]}  Qd1 {[%clk 0:00:03]} 35. Rf3 {[%clk 0:00:24]}  Qd5 {[%clk 0:00:03]} 36. Qe8+ {[%clk 0:00:21]}  Kh7 {[%clk 0:00:03]} 37. Qh5+ {[%clk 0:00:21]}  Kg8 {[%clk 0:00:04]} 38. Qxh4 {[%clk 0:00:22]}  Qxe5 {[%clk 0:00:04]} 39. Qd8+ {[%clk 0:00:21]}  Kh7 {[%clk 0:00:04]} 40. Rh3+ {[%clk 0:00:21]}  Kg6 {[%clk 0:00:04]} 41. Qe8+ {[%clk 0:00:22]}  Kf6 {[%clk 0:00:04]} 42. Rf3+ {[%clk 0:00:23]} 1-0


[Site "https://www.chess.com"]

[Event "Titled Tuesday Blitz June 28 Early 2022"]
[White "Sahil, Tickoo"]
[Black "Coto Mederos, Michel"]
[WhiteFideId "5019710"]
[BlackFideId "3508528"]
[WhiteElo "2047"]
[BlackElo "2427"]
[Result "0-1"]
[Round "04"]
[TimeControl "180+1"]
[Date "2022.06.28"]
[WhiteClock "0:00:09"]
[BlackClock "0:00:05"]

1. d4 {[%clk 0:03:00]}  d5 {[%clk 0:02:58]} 2. Bf4 {[%clk 0:02:58]}  Nf6 {[%clk 0:02:58]} 3. e3 {[%clk 0:02:55]}  c5 {[%clk 0:02:56]} 4. c3 {[%clk 0:02:55]}  Nc6 {[%clk 0:02:55]} 5. Nd2 {[%clk 0:02:51]}  Qb6 {[%clk 0:02:52]} 6. Qb3 {[%clk 0:02:47]}  c4 {[%clk 0:02:48]} 7. Qc2 {[%clk 0:02:46]}  e6 {[%clk 0:02:39]} 8. Ngf3 {[%clk 0:02:36]}  Qd8 {[%clk 0:02:37]} 9. e4 {[%clk 0:02:34]}  b5 {[%clk 0:02:27]} 10. a3 {[%clk 0:02:27]}  Be7 {[%clk 0:02:20]} 11. Be2 {[%clk 0:02:24]}  O-O {[%clk 0:02:19]} 12. e5 {[%clk 0:02:14]}  Ne8 {[%clk 0:01:58]} 13. Rd1 {[%clk 0:02:06]}  Bd7 {[%clk 0:01:57]} 14. h4 {[%clk 0:02:04]}  f5 {[%clk 0:01:56]} 15. Bg5 {[%clk 0:01:59]}  a5 {[%clk 0:01:50]} 16. Nf1 {[%clk 0:01:54]}  b4 {[%clk 0:01:45]} 17. axb4 {[%clk 0:01:49]}  axb4 {[%clk 0:01:46]} 18. Bxe7 {[%clk 0:01:42]}  Qxe7 {[%clk 0:01:45]} 19. h5 {[%clk 0:01:33]}  Nc7 {[%clk 0:01:40]} 20. h6 {[%clk 0:01:33]}  g6 {[%clk 0:01:37]} 21. Qc1 {[%clk 0:01:29]}  Nb5 {[%clk 0:01:35]} 22. Ng3 {[%clk 0:01:25]}  bxc3 {[%clk 0:01:34]} 23. bxc3 {[%clk 0:01:25]}  Ra3 {[%clk 0:01:34]} 24. Nh5 {[%clk 0:01:06]}  gxh5 {[%clk 0:01:14]} 25. Rxh5 {[%clk 0:01:02]}  Kh8 {[%clk 0:01:14]} 26. Rg5 {[%clk 0:00:59]}  Rxc3 {[%clk 0:01:10]} 27. Qf4 {[%clk 0:00:58]}  Rxf3 {[%clk 0:00:49]} 28. Bxf3 {[%clk 0:00:53]}  Nbxd4 {[%clk 0:00:25]} 29. Rg7 {[%clk 0:00:50]}  Nxf3+ {[%clk 0:00:23]} 30. gxf3 {[%clk 0:00:45]}  Rf7 {[%clk 0:00:23]} 31. Rg1 {[%clk 0:00:33]}  Qb4+ {[%clk 0:00:19]} 32. Kf1 {[%clk 0:00:32]}  Qb8 {[%clk 0:00:16]} 33. Re1 {[%clk 0:00:29]}  c3 {[%clk 0:00:16]} 34. Rg7 {[%clk 0:00:25]}  Rxg7 {[%clk 0:00:14]} 35. hxg7+ {[%clk 0:00:23]}  Kg8 {[%clk 0:00:14]} 36. Qh6 {[%clk 0:00:17]}  d4 {[%clk 0:00:13]} 37. f4 {[%clk 0:00:16]}  d3 {[%clk 0:00:13]} 38. Kg2 {[%clk 0:00:16]}  Qe8 {[%clk 0:00:08]} 39. Kf3 {[%clk 0:00:08]}  Qg6 {[%clk 0:00:07]} 40. Qh4 {[%clk 0:00:07]}  Nd4+ {[%clk 0:00:05]} 41. Ke3 {[%clk 0:00:06]}  Nc2+ {[%clk 0:00:06]} 42. Kxd3 {[%clk 0:00:04]}  Nxe1+ {[%clk 0:00:07]} 43. Ke2 {[%clk 0:00:05]}  Qg4+ {[%clk 0:00:05]} 44. Qxg4 {[%clk 0:00:04]}  fxg4 {[%clk 0:00:05]} 45. Kxe1 {[%clk 0:00:05]}  Kxg7 {[%clk 0:00:06]} 46. Ke2 {[%clk 0:00:06]}  Bb5+ {[%clk 0:00:06]} 47. Kd1 {[%clk 0:00:05]}  Bd3 {[%clk 0:00:06]} 48. f3 {[%clk 0:00:05]}  gxf3 {[%clk 0:00:05]} 49. f5 {[%clk 0:00:06]}  exf5 {[%clk 0:00:05]} 50. e6 {[%clk 0:00:07]}  Kf6 {[%clk 0:00:05]} 51. e7 {[%clk 0:00:07]}  Kxe7 {[%clk 0:00:05]} 52. Kc1 {[%clk 0:00:08]}  f2 {[%clk 0:00:05]} 53. Kd1 {[%clk 0:00:09]} 0-1


[Site "https://www.chess.com"]

[Event "Titled Tuesday Blitz June 28 Early 2022"]
[White "Sargissyan, Sargis"]
[Black "Ciuffoletti, Paolo"]
[WhiteFideId "13303210"]
[BlackFideId "807630"]
[WhiteElo "2174"]
[BlackElo "2143"]
[Result "1-0"]
[Round "04"]
[TimeControl "180+1"]
[Date "2022.06.28"]
[WhiteClock "0:00:14"]
[BlackClock "0:00:15"]

1. e4 {[%clk 0:03:00]}  c5 {[%clk 0:02:59]} 2. Nc3 {[%clk 0:02:58]}  Nc6 {[%clk 0:02:59]} 3. Bb5 {[%clk 0:02:57]}  e6 {[%clk 0:02:57]} 4. Bxc6 {[%clk 0:02:55]}  bxc6 {[%clk 0:02:56]} 5. f4 {[%clk 0:02:55]}  d5 {[%clk 0:02:54]} 6. Nf3 {[%clk 0:02:54]}  Nf6 {[%clk 0:02:42]} 7. d3 {[%clk 0:02:23]}  Be7 {[%clk 0:02:33]} 8. O-O {[%clk 0:02:20]}  Ba6 {[%clk 0:02:18]} 9. Qe2 {[%clk 0:01:59]}  c4 {[%clk 0:02:08]} 10. d4 {[%clk 0:01:58]}  Qb6 {[%clk 0:01:47]} 11. e5 {[%clk 0:01:37]}  Ne4 {[%clk 0:01:36]} 12. Nxe4 {[%clk 0:00:59]}  c3 {[%clk 0:01:26]} 13. Qe1 {[%clk 0:00:40]}  Bxf1 {[%clk 0:01:24]} 14. Nxc3 {[%clk 0:00:33]}  Ba6 {[%clk 0:01:15]} 15. f5 {[%clk 0:00:33]}  c5 {[%clk 0:01:12]} 16. f6 {[%clk 0:00:31]}  gxf6 {[%clk 0:01:05]} 17. exf6 {[%clk 0:00:31]}  cxd4 {[%clk 0:01:00]} 18. Nxd5 {[%clk 0:00:30]}  Qc5 {[%clk 0:00:46]} 19. Nxe7 {[%clk 0:00:29]}  d3+ {[%clk 0:00:25]} 20. Be3 {[%clk 0:00:29]}  Qxc2 {[%clk 0:00:25]} 21. Qa5 {[%clk 0:00:19]}  Bb7 {[%clk 0:00:18]} 22. Qb5+ {[%clk 0:00:17]}  Kf8 {[%clk 0:00:16]} 23. Qxb7 {[%clk 0:00:17]}  Rd8 {[%clk 0:00:16]} 24. Rc1 {[%clk 0:00:15]}  Qd2 {[%clk 0:00:15]} 25. Bxd2 {[%clk 0:00:14]} 1-0


[Site "https://www.chess.com"]

[Event "Titled Tuesday Blitz June 28 Early 2022"]
[White "Sarkar, Justin"]
[Black "Bringas Gomez, Artai"]
[WhiteFideId "2010011"]
[BlackFideId "24534064"]
[WhiteElo "2020"]
[BlackElo "1988"]
[Result "1-0"]
[Round "04"]
[TimeControl "180+1"]
[Date "2022.06.28"]
[WhiteClock "0:00:04"]
[BlackClock "0:00:55"]

1. e4 {[%clk 0:02:49]}  c5 {[%clk 0:02:59]} 2. Nf3 {[%clk 0:02:47]}  d6 {[%clk 0:02:59]} 3. d4 {[%clk 0:02:42]}  cxd4 {[%clk 0:03:00]} 4. Nxd4 {[%clk 0:02:43]}  Nf6 {[%clk 0:03:00]} 5. Nc3 {[%clk 0:02:42]}  g6 {[%clk 0:03:01]} 6. Be2 {[%clk 0:02:25]}  Bg7 {[%clk 0:03:01]} 7. O-O {[%clk 0:02:25]}  O-O {[%clk 0:03:01]} 8. Be3 {[%clk 0:02:23]}  b6 {[%clk 0:02:59]} 9. Bf3 {[%clk 0:01:42]}  e5 {[%clk 0:02:49]} 10. Ndb5 {[%clk 0:01:40]}  Ne8 {[%clk 0:02:45]} 11. Nd5 {[%clk 0:01:37]}  Nd7 {[%clk 0:02:41]} 12. c4 {[%clk 0:01:31]}  Bb7 {[%clk 0:02:29]} 13. Qd2 {[%clk 0:01:17]}  Nc5 {[%clk 0:02:19]} 14. Bg5 {[%clk 0:00:57]}  f6 {[%clk 0:02:15]} 15. Be3 {[%clk 0:00:50]}  Ne6 {[%clk 0:02:14]} 16. Rad1 {[%clk 0:00:32]}  Qd7 {[%clk 0:02:07]} 17. g3 {[%clk 0:00:10]}  Qf7 {[%clk 0:02:06]} 18. Bg2 {[%clk 0:00:08]}  f5 {[%clk 0:02:03]} 19. f4 {[%clk 0:00:06]}  exf4 {[%clk 0:01:59]} 20. Nxf4 {[%clk 0:00:04]}  Nc5 {[%clk 0:01:56]} 21. exf5 {[%clk 0:00:02]}  Bxg2 {[%clk 0:01:28]} 22. Qxg2 {[%clk 0:00:03]}  Rc8 {[%clk 0:01:20]} 23. fxg6 {[%clk 0:00:03]}  Qxc4 {[%clk 0:01:19]} 24. gxh7+ {[%clk 0:00:03]}  Kh8 {[%clk 0:01:07]} 25. Ng6+ {[%clk 0:00:03]}  Kxh7 {[%clk 0:01:08]} 26. Nxf8+ {[%clk 0:00:03]}  Kg8 {[%clk 0:01:06]} 27. Ng6 {[%clk 0:00:03]}  Qxb5 {[%clk 0:01:06]} 28. Ne7+ {[%clk 0:00:03]}  Kh8 {[%clk 0:01:06]} 29. Nxc8 {[%clk 0:00:03]}  Qd7 {[%clk 0:01:04]} 30. Nxd6 {[%clk 0:00:03]}  Nf6 {[%clk 0:00:58]} 31. Qf3 {[%clk 0:00:03]}  Kg8 {[%clk 0:00:58]} 32. Nf5 {[%clk 0:00:03]}  Qe6 {[%clk 0:00:48]} 33. Nxg7 {[%clk 0:00:03]}  Kxg7 {[%clk 0:00:49]} 34. Bd4 {[%clk 0:00:03]}  Nd7 {[%clk 0:00:50]} 35. Rde1 {[%clk 0:00:03]}  Qd6 {[%clk 0:00:49]} 36. Bxf6+ {[%clk 0:00:02]}  Nxf6 {[%clk 0:00:50]} 37. Qxf6+ {[%clk 0:00:02]}  Qxf6 {[%clk 0:00:49]} 38. Rxf6 {[%clk 0:00:03]}  b5 {[%clk 0:00:50]} 39. Rfe6 {[%clk 0:00:02]}  b4 {[%clk 0:00:51]} 40. Re7+ {[%clk 0:00:03]}  Kf6 {[%clk 0:00:52]} 41. Rxa7 {[%clk 0:00:03]}  Kf5 {[%clk 0:00:53]} 42. Rb7 {[%clk 0:00:03]}  b3 {[%clk 0:00:54]} 43. Rxb3 {[%clk 0:00:04]}  Kg4 {[%clk 0:00:54]} 44. Rb4+ {[%clk 0:00:04]}  Kh3 {[%clk 0:00:55]} 45. Rh4# {[%clk 0:00:04]} 1-0


[Site "https://www.chess.com"]